[Event "Charlotte Open 2020"]
[Site "Charlotte"]
[Date "2020.01.05"]
[Round "8.13"]
[White "Petesch, Gabriel"]
[Black "Moon, Benjamin"]
[Result "1-0"]
[ECO "D15"]
[WhiteElo "2302"]
[BlackElo "2237"]
[Annotator "RC"]
[PlyCount "87"]
[EventDate "2020.01.02"]
[EventType "swiss"]
[EventCountry "USA"]
[SourceTitle "playchess.com"]
[Source "ChessBase"]
[SourceQuality "1"]
[TimeControl "6000+30"]

1. d4 {[%emt 1:40:30]} d5 {[%emt 1:40:30]} 2. c4 {[%emt 0:00:30]} c6 {[%emt 0:00:30]} 3. Nc3 {[%emt 0:00:30]} Nf6 {[%emt 0:00:30]} 4. Nf3 {[%emt 0:00:30]} a6 {[%emt 0:00:30]} 5. c5 {[%emt 0:00:30]} Nbd7 {[%emt 0:00:30]} 6. Bf4 {[%emt 0:00:30]} g6 {[%emt 0:00:30]} 7. Qd2 {[%emt 0:00:30]} Bg7 {[%emt 0:00:30]} 8. Ne5 {[%emt 0:00:30]} O-O {[%emt 0:00:30]} 9. g3 {[%emt 0:00:30]} Nxe5 {[%emt 0:00:30]} 10. Bxe5 {[%emt 0:00:30]} Nd7 {[%emt 0:00:30]} 11. Bxg7 {[%emt 0:00:30]} Kxg7 {[%emt 0:00:30]} 12. Bg2 {[%emt 0:00:30]} e5 {[%emt 0:00:30]} 13. e4 {[%emt 0:00:30]} exd4 {[%emt 0:00:30]} 14. Qxd4+ {[%emt 0:00:30]} Qf6 {[%emt 0:00:30]} 15. O-O-O {[%emt 0:00:30]} dxe4 {[%emt 0:00:30]} 16. Qe3 {[%emt 0:00:30]} Qe6 {[%emt 0:00:30]} 17. Nxe4 {[%emt 0:00:30]} Re8 {[%emt 0:00:30]} 18. Rhe1 {[%emt 0:00:30]} Qc4+ {[%emt 0:00:30]} 19. Kb1 {[%emt 0:00:30]} Nf6 {[%emt 0:00:30]} 20. Rd4 {[%emt 0:00:30]} Qe6 {[%emt 0:00:30]} 21. Rd6 {[%emt 0:00:30]} Qf5 {[%emt 0:00:30]} 22. Qc3 {[%emt 0:00:30]} Qe5 {[%emt 0:00:30]} 23. Qxe5 {[%emt 0:00:30]} Rxe5 {[%emt 0:00:30]} 24. Rxf6 {[%emt 0:00:30]} Rxe4 {[%emt 0:00:30]} 25. Rxf7+ {[%emt 0:00:30]} Kxf7 {[%emt 0:00:30]} 26. Bxe4 {[%emt 0:00:30]} Bf5 {[%emt 0:00:30]} 27. Kc2 {[%emt 0:00:30]} Bxe4+ {[%emt 0:00:30]} 28. Rxe4 {[%emt 0:00:30]} Rd8 {[%emt 0:00:30]} 29. Kc3 {[%emt 0:00:30]} Rd5 {[%emt 0:00:30]} 30. b4 {[%emt 0:00:30]} Rd1 {[%emt 0:00:30]} 31. Rd4 {[%emt 0:00:30]} Rc1+ {[%emt 0:00:30]} 32. Kb3 {[%emt 0:00:30]} Ke7 {[%emt 0:00:30]} 33. Rd2 {[%emt 0:00:30]} a5 {[%emt 0:00:30]} 34. Rc2 {[%emt 0:00:30]} Rb1+ {[%emt 0:00:30]} 35. Rb2 {[%emt 0:00:30]} Rxb2+ {[%emt 0:00:30]} 36. Kxb2 {[%emt 0:00:30]} axb4 {[%emt 0:00:30]} 37. Kb3 {[%emt 0:00:30]} Ke6 {[%emt 0:00:30]} 38. Kxb4 {[%emt 0:00:30]} Kd5 {[%emt 0:00:30]} 39. a4 {[%emt 0:00:30]} Kd4 {[%emt 0:00:30]} 40. f4 {[%emt 0:00:30]} h5 {[%emt 0:00:30]} 41. h3 {[%emt 0:00:30]} Ke4 {[%emt 0:00:30]} 42. Ka5 {[%emt 0:00:30]} Kf3 {[%emt 0:00:30]} 43. Kb6 {[%emt 0:00:30]} Kxg3 {[%emt 0:00:30]} 44. Kxb7 {[%emt 0:00:30]} 1-0

[Event "Charlotte Open 2020"]
[Site "Charlotte"]
[Date "2020.01.05"]
[Round "8.14"]
[White "Cezila Jr, Rubens"]
[Black "Guo, Arthur"]
[Result "1/2-1/2"]
[ECO "A12"]
[WhiteElo "2239"]
[BlackElo "2301"]
[Annotator "ChessBase"]
[PlyCount "84"]
[EventDate "2020.01.02"]
[EventType "swiss"]
[EventCountry "USA"]
[SourceTitle "playchess.com"]
[Source "ChessBase"]
[SourceQuality "1"]
[TimeControl "6000+30"]

1. Nf3 {[%emt 1:40:30]} d5 {[%emt 1:40:30]} 2. e3 {[%emt 0:00:30]} g6 {[%emt 0:00:30]} 3. c4 {[%emt 0:00:30]} Nf6 {[%emt 0:00:30]} 4. b3 {[%emt 0:00:30]} Bg7 {[%emt 0:00:30]} 5. Bb2 {[%emt 0:00:30]} c6 {[%emt 0:00:30]} 6. Qc2 {[%emt 0:00:30]} O-O {[%emt 0:00:30]} 7. Nc3 {[%emt 0:00:30]} Bf5 {[%emt 0:00:30]} 8. d3 {[%emt 0:00:30]} Re8 {[%emt 0:00:30]} 9. Nh4 {[%emt 0:00:30]} Bd7 {[%emt 0:00:30]} 10. d4 {[%emt 0:00:30]} e5 {[%emt 0:00:30]} 11. dxe5 {[%emt 0:00:30]} Ng4 {[%emt 0:00:30]} 12. Nf3 {[%emt 0:00:30]} Nxe5 {[%emt 0:00:30]} 13. Nxe5 {[%emt 0:00:30]} Bxe5 {[%emt 0:00:30]} 14. Be2 {[%emt 0:00:30]} Bf5 {[%emt 0:00:30]} 15. Qd2 {[%emt 0:00:30]} Qg5 {[%emt 0:00:30]} 16. g3 {[%emt 0:00:30]} d4 {[%emt 0:00:30]} 17. exd4 {[%emt 0:00:30]} Qxd2+ {[%emt 0:00:30]} 18. Kxd2 {[%emt 0:00:30]} Bxd4 {[%emt 0:00:30]} 19. Nd1 {[%emt 0:00:30]} Bxb2 {[%emt 0:00:30]} 20. Nxb2 {[%emt 0:00:30]} Na6 {[%emt 0:00:30]} 21. Rhd1 {[%emt 0:00:30]} Nb4 {[%emt 0:00:30]} 22. g4 {[%emt 0:00:30]} Be6 {[%emt 0:00:30]} 23. a3 {[%emt 0:00:30]} Na6 {[%emt 0:00:30]} 24. b4 {[%emt 0:00:30]} Rad8+ {[%emt 0:00:30]} 25. Kc3 {[%emt 0:00:30]} Rxd1 26. Nxd1 {[%emt 0:00:30]} f5 {[%emt 0:01:00]} 27. gxf5 {[%emt 0:00:30]} Bxf5 {[%emt 0:00:30]} 28. Ne3 {[%emt 0:00:30]} Nc7 {[%emt 0:00:30]} 29. Rd1 {[%emt 0:00:30]} Be6 {[%emt 0:00:30]} 30. Rd4 {[%emt 0:00:30]} Kg7 {[%emt 0:00:30]} 31. Re4 {[%emt 0:00:30]} Rd8 {[%emt 0:00:30]} 32. f4 {[%emt 0:00:30]} Kf7 {[%emt 0:00:30]} 33. Re5 {[%emt 0:00:30]} Bc8 {[%emt 0:00:30]} 34. c5 {[%emt 0:00:30]} Be6 {[%emt 0:00:30]} 35. Bd3 {[%emt 0:00:30]} Kf6 {[%emt 0:00:30]} 36. h4 {[%emt 0:00:30]} Nd5+ {[%emt 0:00:30]} 37. Nxd5+ {[%emt 0:00:30]} Rxd5 {[%emt 0:00:30]} 38. Rxd5 {[%emt 0:00:30]} Bxd5 {[%emt 0:00:30]} 39. Kd4 {[%emt 0:00:30]} Be6 {[%emt 0:00:30]} 40. Bc2 {[%emt 0:00:30]} Bf5 {[%emt 0:00:30]} 41. Bd1 {[%emt 0:00:30]} h5 {[%emt 0:00:30]} 42. Bf3 {[%emt 0:00:30]} a6 {[%emt 0:00:30] Ke4 Ke5+} 1/2-1/2

[Event "Charlotte Open 2020"]
[Site "Charlotte"]
[Date "2020.01.05"]
[Round "8.15"]
[White "Xu, Grant"]
[Black "Yoo, Christopher Woojin"]
[Result "0-1"]
[ECO "B21"]
[WhiteElo "2228"]
[BlackElo "2456"]
[Annotator "ChessBase"]
[PlyCount "153"]
[EventDate "2020.01.02"]
[EventType "swiss"]
[EventCountry "USA"]
[SourceTitle "playchess.com"]
[Source "ChessBase"]
[SourceQuality "1"]
[TimeControl "6000+30"]

1. e4 {[%emt 1:40:30]} c5 {[%emt 1:40:30]} 2. d4 {[%emt 0:00:30]} cxd4 {[%emt 0:00:30]} 3. c3 {[%emt 0:00:30]} dxc3 {[%emt 0:00:30]} 4. Nxc3 {[%emt 0:00:30]} Nc6 {[%emt 0:00:30]} 5. Nf3 {[%emt 0:00:30]} d6 {[%emt 0:00:30]} 6. Bc4 {[%emt 0:00:30]} e6 {[%emt 0:00:30]} 7. O-O {[%emt 0:00:30]} a6 {[%emt 0:00:30]} 8. Qe2 {[%emt 0:00:30]} Be7 {[%emt 0:00:30]} 9. Rd1 {[%emt 0:00:30]} Bd7 {[%emt 0:00:30]} 10. Bf4 {[%emt 0:00:30]} e5 {[%emt 0:00:30]} 11. Be3 {[%emt 0:00:30]} Nf6 {[%emt 0:00:30]} 12. h3 {[%emt 0:00:30]} O-O {[%emt 0:00:30]} 13. Bg5 {[%emt 0:00:30]} Be6 {[%emt 0:00:30]} 14. Rac1 {[%emt 0:00:30]} Rc8 {[%emt 0:00:30]} 15. Nd5 {[%emt 0:00:30]} Bxd5 {[%emt 0:00:30]} 16. exd5 {[%emt 0:00:30]} Nb8 {[%emt 0:00:30]} 17. b4 {[%emt 0:00:30]} Nbd7 {[%emt 0:00:30]} 18. Be3 {[%emt 0:00:30]} Ne4 {[%emt 0:00:30]} 19. Nd2 {[%emt 0:00:30]} Nxd2 {[%emt 0:00:30]} 20. Qxd2 {[%emt 0:00:30]} f5 {[%emt 0:00:30]} 21. f4 {[%emt 0:00:30]} Bf6 {[%emt 0:00:30]} 22. Bb3 {[%emt 0:00:30]} Rxc1 {[%emt 0:00:30]} 23. Rxc1 {[%emt 0:00:30]} exf4 {[%emt 0:00:30]} 24. Bxf4 {[%emt 0:00:30]} Be5 {[%emt 0:00:30]} 25. Bg5 {[%emt 0:00:30]} Qb6+ {[%emt 0:00:30]} 26. Kh1 {[%emt 0:00:30]} h6 {[%emt 0:00:30]} 27. Be3 {[%emt 0:00:30]} Qd8 {[%emt 0:00:30]} 28. Bc2 {[%emt 0:00:30]} Qh4 {[%emt 0:00:30]} 29. Rf1 {[%emt 0:00:30]} Qg3 {[%emt 0:00:30]} 30. Bg1 {[%emt 0:00:30]} f4 {[%emt 0:00:30]} 31. Rf3 {[%emt 0:00:30]} Qg5 {[%emt 0:00:30]} 32. Qd3 {[%emt 0:00:30]} Nf6 {[%emt 0:00:30]} 33. Bf2 {[%emt 0:00:30]} Qh5 {[%emt 0:00:30]} 34. Qf5 {[%emt 0:00:30]} Kh8 {[%emt 0:00:30]} 35. Be1 {[%emt 0:00:30]} Qxf5 {[%emt 0:00:30]} 36. Bxf5 {[%emt 0:00:30]} g5 {[%emt 0:00:30]} 37. Rb3 {[%emt 0:00:30]} b5 {[%emt 0:00:30]} 38. Be6 {[%emt 0:00:30]} Ne8 {[%emt 0:00:30]} 39. Bc8 {[%emt 0:00:30]} Nc7 {[%emt 0:00:30]} 40. Bb7 {[%emt 0:00:30]} Kg7 {[%emt 0:00:30]} 41. Bf2 {[%emt 0:00:30]} Re8 {[%emt 0:00:30]} 42. Kg1 {[%emt 0:00:30]} Kf6 {[%emt 0:00:30]} 43. Rb1 {[%emt 0:00:30]} Re7 {[%emt 0:00:30]} 44. Bb6 {[%emt 0:00:30]} Ne6 {[%emt 0:00:30]} 45. Bxa6 {[%emt 0:00:30]} Bd4+ {[%emt 0:00:30]} 46. Kf1 {[%emt 0:00:30]} Bxb6 {[%emt 0:00:30]} 47. dxe6 {[%emt 0:00:30]} Ra7 {[%emt 0:00:30]} 48. Bxb5 {[%emt 0:00:30]} Rxa2 {[%emt 0:00:30]} 49. Be2 {[%emt 0:00:30]} Rc2 {[%emt 0:00:30]} 50. Bf3 {[%emt 0:00:30]} Kxe6 {[%emt 0:00:30]} 51. b5 {[%emt 0:00:30]} Kd7 {[%emt 0:00:30]} 52. Bc6+ {[%emt 0:00:30]} Kc7 {[%emt 0:00:30]} 53. Re1 {[%emt 0:00:30]} Rf2+ {[%emt 0:00:30]} 54. Kg1 Be3 {[%emt 0:00:30]} 55. Kh2 {[%emt 0:01:00]} Rd2 {[%emt 0:00:30]} 56. Bf3 {[%emt 0:00:30]} Kb6 {[%emt 0:00:30]} 57. Re2 {[%emt 0:00:30]} Rd4 {[%emt 0:00:30]} 58. Rb2 {[%emt 0:00:30]} d5 {[%emt 0:00:30]} 59. h4 {[%emt 0:00:30]} Rd3 {[%emt 0:00:30]} 60. hxg5 {[%emt 0:00:30]} hxg5 {[%emt 0:00:30]} 61. Ra2 {[%emt 0:00:30]} Bc5 {[%emt 0:00:30]} 62. Ra8 {[%emt 0:00:30]} Kc7 {[%emt 0:00:30]} 63. Rg8 {[%emt 0:00:30]} Be7 {[%emt 0:00:30]} 64. Rg7 {[%emt 0:00:30]} Kd6 {[%emt 0:00:30]} 65. b6 {[%emt 0:00:30]} Rb3 {[%emt 0:00:30]} 66. Bxd5 {[%emt 0:00:30]} Kxd5 {[%emt 0:00:30]} 67. Rxe7 {[%emt 0:00:30]} Rxb6 {[%emt 0:00:30]} 68. Rg7 {[%emt 0:00:30]} Rh6+ {[%emt 0:00:30]} 69. Kg1 {[%emt 0:00:30]} Rh5 {[%emt 0:00:30]} 70. g4 {[%emt 0:00:30]} Rh3 {[%emt 0:00:30]} 71. Rxg5+ {[%emt 0:00:30]} Ke4 {[%emt 0:00:30]} 72. Ra5 {[%emt 0:00:30]} Rb3 {[%emt 0:00:30]} 73. Kf2 {[%emt 0:00:30]} Rb2+ {[%emt 0:00:30]} 74. Kf1 {[%emt 0:00:30]} f3 {[%emt 0:00:30]} 75. Ra8 {[%emt 0:00:30]} Kf4 {[%emt 0:00:30]} 76. Rf8+ {[%emt 0:00:30]} Kg3 {[%emt 0:00:30]} 77. Re8 {[%emt 0:00:30]} 0-1

[Event "Charlotte Open 2020"]
[Site "Charlotte"]
[Date "2020.01.05"]
[Round "8.16"]
[White "Puckett, Matthew"]
[Black "Ynojosa Aponte, Felix Jose"]
[Result "0-1"]
[ECO "A60"]
[WhiteElo "2148"]
[BlackElo "2403"]
[Annotator "ChessBase"]
[PlyCount "102"]
[EventDate "2020.01.02"]
[EventType "swiss"]
[EventCountry "USA"]
[SourceTitle "playchess.com"]
[Source "ChessBase"]
[SourceQuality "1"]
[TimeControl "6000+30"]

1. d4 {[%emt 1:40:30]} Nf6 {[%emt 1:40:30]} 2. c4 {[%emt 0:00:30]} e6 {[%emt 0:00:30]} 3. g3 {[%emt 0:00:30]} c5 {[%emt 0:00:30]} 4. d5 {[%emt 0:00:30]} exd5 {[%emt 0:00:30]} 5. cxd5 {[%emt 0:00:30]} b5 {[%emt 0:00:30]} 6. e4 {[%emt 0:00:30]} Nxe4 {[%emt 0:00:30]} 7. Bg2 {[%emt 0:00:30]} Nd6 {[%emt 0:00:30]} 8. Nf3 {[%emt 0:00:30]} Be7 {[%emt 0:00:30]} 9. O-O {[%emt 0:00:30]} O-O {[%emt 0:00:30]} 10. Re1 {[%emt 0:00:30]} Re8 {[%emt 0:00:30]} 11. Bf4 {[%emt 0:00:30]} Bb7 {[%emt 0:00:30]} 12. Nc3 {[%emt 0:00:30]} b4 {[%emt 0:00:30]} 13. Bxd6 {[%emt 0:00:30]} Bxd6 {[%emt 0:00:30]} 14. Ne4 {[%emt 0:00:30]} Bf8 {[%emt 0:00:30]} 15. Nfg5 {[%emt 0:00:30]} h6 {[%emt 0:00:30]} 16. Qh5 {[%emt 0:00:30]} g6 {[%emt 0:00:30]} 17. Qf3 {[%emt 0:00:30]} f5 {[%emt 0:00:30]} 18. Nf6+ {[%emt 0:00:30]} Qxf6 {[%emt 0:00:30]} 19. Rxe8 {[%emt 0:00:30]} hxg5 {[%emt 0:00:30]} 20. Qb3 {[%emt 0:00:30]} Kg7 {[%emt 0:00:30]} 21. Rae1 {[%emt 0:00:30]} Na6 {[%emt 0:00:30]} 22. Rxa8 {[%emt 0:00:30]} Bxa8 {[%emt 0:00:30]} 23. Qa4 {[%emt 0:00:30]} Qd6 {[%emt 0:00:30]} 24. Re8 {[%emt 0:00:30]} Nc7 {[%emt 0:00:30]} 25. Rd8 {[%emt 0:00:30]} Kg8 {[%emt 0:00:30]} 26. Qxd7 {[%emt 0:00:30]} Qxd7 {[%emt 0:00:30]} 27. Rxd7 {[%emt 0:00:30]} Nb5 {[%emt 0:00:30]} 28. a4 {[%emt 0:00:30]} bxa3 {[%emt 0:00:30]} 29. bxa3 {[%emt 0:00:30]} a6 {[%emt 0:00:30]} 30. a4 {[%emt 0:00:30]} Nd6 {[%emt 0:00:30]} 31. Rc7 {[%emt 0:00:30]} c4 {[%emt 0:00:30]} 32. Kf1 {[%emt 0:00:30]} Bb7 {[%emt 0:00:30]} 33. Ke2 {[%emt 0:00:30]} f4 {[%emt 0:00:30]} 34. g4 {[%emt 0:00:30]} Bc8 {[%emt 0:00:30]} 35. h3 {[%emt 0:00:30]} Bg7 {[%emt 0:00:30]} 36. Kd2 {[%emt 0:00:30]} Kf8 {[%emt 0:00:30]} 37. Kc2 {[%emt 0:00:30]} Bd4 {[%emt 0:00:30]} 38. Bf1 {[%emt 0:00:30]} Bxf2 {[%emt 0:00:30]} 39. Bxc4 {[%emt 0:00:30]} Ke8 {[%emt 0:00:30]} 40. Be2 {[%emt 0:00:30]} Bd4 {[%emt 0:00:30]} 41. Bf3 {[%emt 0:00:30]} Kd8 {[%emt 0:00:30]} 42. Rc6 {[%emt 0:00:30]} Kd7 {[%emt 0:00:30]} 43. Kd3 {[%emt 0:00:30]} Ba7 {[%emt 0:00:30]} 44. Be4 {[%emt 0:00:30]} Bb7 {[%emt 0:00:30]} 45. Rc1 {[%emt 0:00:30]} Nxe4 {[%emt 0:00:30]} 46. Kxe4 {[%emt 0:00:30]} Kd6 47. Rd1 {[%emt 0:00:30]} a5 {[%emt 0:01:00]} 48. Rd2 {[%emt 0:00:30]} Be3 {[%emt 0:00:30]} 49. Rd1 {[%emt 0:00:30]} Ba6 {[%emt 0:00:30]} 50. Rb1 {[%emt 0:00:30]} Bc4 {[%emt 0:00:30]} 51. Rd1 {[%emt 0:00:30]} Bb3 {[%emt 0:00:30]} 0-1

[Event "Charlotte Open 2020"]
[Site "Charlotte"]
[Date "2020.01.05"]
[Round "8.17"]
[White "Park, Evan"]
[Black "Yu, Jennifer"]
[Result "0-1"]
[ECO "C84"]
[WhiteElo "2175"]
[BlackElo "2321"]
[Annotator "ChessBase"]
[PlyCount "88"]
[EventDate "2020.01.02"]
[EventType "swiss"]
[EventCountry "USA"]
[SourceTitle "playchess.com"]
[Source "ChessBase"]
[SourceQuality "1"]
[TimeControl "6000+30"]

1. e4 {[%emt 1:40:30]} e5 {[%emt 1:40:30]} 2. Nf3 {[%emt 0:00:30]} Nc6 {[%emt 0:00:30]} 3. Bb5 {[%emt 0:00:30]} a6 {[%emt 0:00:30]} 4. Ba4 {[%emt 0:00:30]} Nf6 {[%emt 0:00:30]} 5. O-O {[%emt 0:00:30]} b5 {[%emt 0:00:30]} 6. Bb3 {[%emt 0:00:30]} Bb7 {[%emt 0:00:30]} 7. d3 {[%emt 0:00:30]} Be7 {[%emt 0:00:30]} 8. Nc3 {[%emt 0:00:30]} O-O {[%emt 0:00:30]} 9. a4 {[%emt 0:00:30]} b4 {[%emt 0:00:30]} 10. Nd5 {[%emt 0:00:30]} Na5 {[%emt 0:00:30]} 11. Nxe7+ {[%emt 0:00:30]} Qxe7 {[%emt 0:00:30]} 12. Ba2 {[%emt 0:00:30]} d5 {[%emt 0:00:30]} 13. exd5 {[%emt 0:00:30]} Nxd5 {[%emt 0:00:30]} 14. Re1 {[%emt 0:00:30]} f6 {[%emt 0:00:30]} 15. Bd2 {[%emt 0:00:30]} c5 {[%emt 0:00:30]} 16. c3 {[%emt 0:00:30]} Kh8 {[%emt 0:00:30]} 17. d4 {[%emt 0:00:30]} cxd4 {[%emt 0:00:30]} 18. Nxd4 {[%emt 0:00:30]} bxc3 {[%emt 0:00:30]} 19. bxc3 {[%emt 0:00:30]} Rfc8 {[%emt 0:00:30]} 20. Qh5 {[%emt 0:00:30]} Nc4 {[%emt 0:00:30]} 21. Nf5 {[%emt 0:00:30]} Qd7 {[%emt 0:00:30]} 22. Bxc4 {[%emt 0:00:30]} Rxc4 {[%emt 0:00:30]} 23. Red1 {[%emt 0:00:30]} Rac8 {[%emt 0:00:30]} 24. Qh3 {[%emt 0:00:30]} Rxa4 {[%emt 0:00:30]} 25. Rab1 {[%emt 0:00:30]} Ba8 {[%emt 0:00:30]} 26. Nd6 {[%emt 0:00:30]} Qxh3 {[%emt 0:00:30]} 27. gxh3 {[%emt 0:00:30]} Rf8 {[%emt 0:00:30]} 28. c4 {[%emt 0:00:30]} Nc7 {[%emt 0:00:30]} 29. Rb6 {[%emt 0:00:30]} Kg8 {[%emt 0:00:30]} 30. Rdb1 {[%emt 0:00:30]} Bf3 {[%emt 0:00:30]} 31. Be3 {[%emt 0:00:30]} h6 {[%emt 0:00:30]} 32. c5 {[%emt 0:00:30]} Nd5 {[%emt 0:00:30]} 33. R6b3 {[%emt 0:00:30]} Nxe3 {[%emt 0:00:30]} 34. fxe3 {[%emt 0:00:30]} a5 {[%emt 0:00:30]} 35. Rc1 {[%emt 0:00:30]} Ra2 {[%emt 0:00:30]} 36. e4 {[%emt 0:00:30]} Rg2+ {[%emt 0:00:30]} 37. Kf1 {[%emt 0:00:30]} Rxh2 {[%emt 0:00:30]} 38. Rbc3 {[%emt 0:00:30]} Rb8 {[%emt 0:00:30]} 39. R3c2 {[%emt 0:00:30]} Rb1 {[%emt 0:00:30]} 40. Rxb1 {[%emt 0:00:30]} Rxc2 {[%emt 0:00:30]} 41. Rb8+ {[%emt 0:00:30]} Kh7 {[%emt 0:00:30]} 42. Rc8 {[%emt 0:00:30]} a4 {[%emt 0:00:30]} 43. c6 {[%emt 0:00:30]} a3 {[%emt 0:00:30]} 44. c7 {[%emt 0:00:30]} a2 {[%emt 0:00:30]} 0-1

[Event "Charlotte Open 2020"]
[Site "Charlotte"]
[Date "2020.01.05"]
[Round "8.18"]
[White "Copeland, Samuel"]
[Black "Daggupati, Balaji"]
[Result "1/2-1/2"]
[ECO "C54"]
[WhiteElo "2128"]
[BlackElo "2311"]
[Annotator "ChessBase"]
[PlyCount "37"]
[EventDate "2020.01.02"]
[EventType "swiss"]
[EventCountry "USA"]
[SourceTitle "playchess.com"]
[Source "ChessBase"]
[SourceQuality "1"]
[TimeControl "6000+30"]

1. e4 {[%emt 1:40:30]} e5 {[%emt 1:40:30]} 2. Nf3 {[%emt 0:00:30]} Nc6 {[%emt 0:00:30]} 3. Bc4 {[%emt 0:00:30]} Bc5 {[%emt 0:00:30]} 4. c3 {[%emt 0:00:30]} Nf6 {[%emt 0:00:30]} 5. d4 {[%emt 0:00:30]} exd4 {[%emt 0:00:30]} 6. cxd4 {[%emt 0:00:30]} Bb4+ {[%emt 0:00:30]} 7. Bd2 {[%emt 0:00:30]} Bxd2+ {[%emt 0:00:30]} 8. Nbxd2 {[%emt 0:00:30]} d5 {[%emt 0:00:30]} 9. exd5 {[%emt 0:00:30]} Nxd5 {[%emt 0:00:30]} 10. Qe2+ {[%emt 0:00:30]} Be6 {[%emt 0:00:30]} 11. Bb5 {[%emt 0:00:30]} Ndb4 {[%emt 0:00:30]} 12. O-O {[%emt 0:00:30]} O-O {[%emt 0:00:30]} 13. Bc4 {[%emt 0:00:30]} Bd5 {[%emt 0:00:30]} 14. Rfc1 {[%emt 0:00:30]} Re8 {[%emt 0:00:30]} 15. Qd1 {[%emt 0:00:30]} Qf6 {[%emt 0:00:30]} 16. Qb3 {[%emt 0:00:30]} Bxc4 {[%emt 0:00:30]} 17. Nxc4 {[%emt 0:00:30]} a5 {[%emt 0:00:30]} 18. Ne3 {[%emt 0:00:30]} Rab8 {[%emt 0:00:30]} 19. a3 {[%emt 0:00:30]} 1/2-1/2

[Event "Charlotte Open 2020"]
[Site "Charlotte"]
[Date "2020.01.05"]
[Round "8.19"]
[White "Martinez, Isaac"]
[Black "Polgar-Shutzman, Tom"]
[Result "0-1"]
[ECO "A48"]
[WhiteElo "2079"]
[BlackElo "2233"]
[Annotator "ChessBase"]
[PlyCount "98"]
[EventDate "2020.01.02"]
[EventType "swiss"]
[EventCountry "USA"]
[SourceTitle "playchess.com"]
[Source "ChessBase"]
[SourceQuality "1"]
[TimeControl "6000+30"]

1. Nf3 {[%emt 1:40:30]} Nf6 {[%emt 1:40:30]} 2. e3 {[%emt 0:00:30]} g6 {[%emt 0:00:30]} 3. b3 {[%emt 0:00:30]} Bg7 {[%emt 0:00:30]} 4. Bb2 {[%emt 0:00:30]} O-O {[%emt 0:00:30]} 5. d4 {[%emt 0:00:30]} d6 {[%emt 0:00:30]} 6. Bd3 {[%emt 0:00:30]} Nbd7 {[%emt 0:00:30]} 7. c4 {[%emt 0:00:30]} e5 {[%emt 0:00:30]} 8. Nc3 {[%emt 0:00:30]} Re8 {[%emt 0:00:30]} 9. Bc2 {[%emt 0:00:30]} exd4 {[%emt 0:00:30]} 10. Nxd4 {[%emt 0:00:30]} Ne5 {[%emt 0:00:30]} 11. O-O {[%emt 0:00:30]} d5 {[%emt 0:00:30]} 12. c5 {[%emt 0:00:30]} Bf8 {[%emt 0:00:30]} 13. b4 {[%emt 0:00:30]} Nc4 {[%emt 0:00:30]} 14. Rb1 {[%emt 0:00:30]} c6 {[%emt 0:00:30]} 15. Bd3 {[%emt 0:00:30]} Nxb2 {[%emt 0:00:30]} 16. Rxb2 {[%emt 0:00:30]} Qc7 {[%emt 0:00:30]} 17. h3 {[%emt 0:00:30]} Bd7 {[%emt 0:00:30]} 18. Qc2 {[%emt 0:00:30]} a5 {[%emt 0:00:30]} 19. a3 {[%emt 0:00:30]} axb4 {[%emt 0:00:30]} 20. axb4 {[%emt 0:00:30]} Bh6 {[%emt 0:00:30]} 21. Re1 {[%emt 0:00:30]} b5 {[%emt 0:00:30]} 22. cxb6 {[%emt 0:00:30]} Qxb6 {[%emt 0:00:30]} 23. Bf1 {[%emt 0:00:30]} Qxd4 {[%emt 0:00:30]} 24. exd4 {[%emt 0:00:30]} Rxe1 {[%emt 0:00:30]} 25. g4 {[%emt 0:00:30]} Nxg4 {[%emt 0:00:30]} 26. hxg4 {[%emt 0:00:30]} Bxg4 {[%emt 0:00:30]} 27. Kg2 {[%emt 0:00:30]} Ra3 {[%emt 0:00:30]} 28. f4 {[%emt 0:00:30]} Bxf4 {[%emt 0:00:30]} 29. Qf2 {[%emt 0:00:30]} Bh3+ {[%emt 0:00:30]} 30. Kxh3 {[%emt 0:00:30]} Rxc3+ {[%emt 0:00:30]} 31. Kg2 {[%emt 0:00:30]} Rg3+ {[%emt 0:00:30]} 32. Kh1 {[%emt 0:00:30]} Rh3+ {[%emt 0:00:30]} 33. Kg2 {[%emt 0:00:30]} Rh2+ {[%emt 0:00:30]} 34. Kf3 {[%emt 0:00:30]} Rxf2+ {[%emt 0:00:30]} 35. Kxf2 {[%emt 0:00:30]} Rd1 {[%emt 0:00:30]} 36. b5 {[%emt 0:00:30]} cxb5 {[%emt 0:00:30]} 37. Rxb5 {[%emt 0:00:30]} Rxd4 {[%emt 0:00:30]} 38. Bg2 {[%emt 0:00:30]} Rd2+ {[%emt 0:00:30]} 39. Kf1 {[%emt 0:00:30]} d4 {[%emt 0:00:30]} 40. Bd5 {[%emt 0:00:30]} Be3 {[%emt 0:00:30]} 41. Rb8+ {[%emt 0:00:30]} Kg7 {[%emt 0:00:30]} 42. Re8 {[%emt 0:00:30]} Rf2+ {[%emt 0:00:30]} 43. Ke1 {[%emt 0:00:30]} h5 {[%emt 0:00:30]} 44. Re4 {[%emt 0:00:30]} g5 {[%emt 0:00:30]} 45. Bc6 {[%emt 0:00:30]} Rf6 {[%emt 0:00:30]} 46. Bd7 {[%emt 0:00:30]} Rd6 {[%emt 0:00:30]} 47. Bc8 {[%emt 0:00:30]} Bf4 {[%emt 0:00:30]} 48. Kd1 {[%emt 0:00:30]} d3 {[%emt 0:00:30]} 49. Ra4 {[%emt 0:00:30]} Rc6 {[%emt 0:00:30]} 0-1

[Event "Charlotte Open 2020"]
[Site "Charlotte"]
[Date "2020.01.05"]
[Round "8.20"]
[White "Beradze, Irakli"]
[Black "Venkat, Raghav"]
[Result "1-0"]
[ECO "B53"]
[WhiteElo "2487"]
[BlackElo "2141"]
[Annotator "ChessBase"]
[PlyCount "77"]
[EventDate "2020.01.02"]
[EventType "swiss"]
[EventCountry "USA"]
[SourceTitle "playchess.com"]
[Source "ChessBase"]
[SourceQuality "1"]
[TimeControl "6000+30"]

1. e4 {[%emt 1:40:30]} c5 {[%emt 1:40:30]} 2. Nf3 {[%emt 0:00:30]} d6 {[%emt 0:00:30]} 3. d4 {[%emt 0:00:30]} cxd4 {[%emt 0:00:30]} 4. Qxd4 {[%emt 0:00:30]} Nc6 {[%emt 0:00:30]} 5. Bb5 {[%emt 0:00:30]} Bd7 {[%emt 0:00:30]} 6. Bxc6 {[%emt 0:00:30]} Bxc6 {[%emt 0:00:30]} 7. Nc3 {[%emt 0:00:30]} e5 {[%emt 0:00:30]} 8. Qd3 {[%emt 0:00:30]} Be7 {[%emt 0:00:30]} 9. O-O {[%emt 0:00:30]} Nf6 {[%emt 0:00:30]} 10. Bg5 {[%emt 0:00:30]} O-O {[%emt 0:00:30]} 11. Rad1 {[%emt 0:00:30]} Ne8 {[%emt 0:00:30]} 12. Bxe7 {[%emt 0:00:30]} Qxe7 {[%emt 0:00:30]} 13. Nd2 Rd8 {[%emt 0:00:30]} 14. Nc4 {[%emt 0:01:00]} Qg5 {[%emt 0:00:30]} 15. Rfe1 {[%emt 0:00:30]} Kh8 {[%emt 0:00:30]} 16. a4 {[%emt 0:00:30]} Rd7 {[%emt 0:00:30]} 17. Qe3 {[%emt 0:00:30]} Qg6 {[%emt 0:00:30]} 18. Qxa7 {[%emt 0:00:30]} f5 {[%emt 0:00:30]} 19. Qe3 {[%emt 0:00:30]} Rdf7 {[%emt 0:00:30]} 20. Qg3 {[%emt 0:00:30]} Qe6 {[%emt 0:00:30]} 21. Nd2 {[%emt 0:00:30]} Nf6 {[%emt 0:00:30]} 22. Qh3 {[%emt 0:00:30]} Ng4 {[%emt 0:00:30]} 23. exf5 {[%emt 0:00:30]} Qxf5 {[%emt 0:00:30]} 24. f3 {[%emt 0:00:30]} Nh6 {[%emt 0:00:30]} 25. Qxf5 {[%emt 0:00:30]} Nxf5 {[%emt 0:00:30]} 26. Nc4 {[%emt 0:00:30]} Rf6 {[%emt 0:00:30]} 27. Ne4 {[%emt 0:00:30]} Rg6 {[%emt 0:00:30]} 28. Ng3 {[%emt 0:00:30]} Nxg3 {[%emt 0:00:30]} 29. hxg3 {[%emt 0:00:30]} Bxf3 {[%emt 0:00:30]} 30. gxf3 {[%emt 0:00:30]} Rxg3+ {[%emt 0:00:30]} 31. Kh2 {[%emt 0:00:30]} Rfxf3 {[%emt 0:00:30]} 32. Re2 {[%emt 0:00:30]} h6 {[%emt 0:00:30]} 33. Nxd6 {[%emt 0:00:30]} Rg5 {[%emt 0:00:30]} 34. Rd3 {[%emt 0:00:30]} Rf4 {[%emt 0:00:30]} 35. b3 {[%emt 0:00:30]} Kh7 {[%emt 0:00:30]} 36. Nxb7 {[%emt 0:00:30]} e4 {[%emt 0:00:30]} 37. Rg3 {[%emt 0:00:30]} Re5 {[%emt 0:00:30]} 38. Nd6 {[%emt 0:00:30]} g5 {[%emt 0:00:30]} 39. Rge3 {[%emt 0:00:30]} 1-0